fUSD/lending_fUSD_20260116
["ID","MTS","AMOUNT","RATE_DAILY","PERIOD"]
[402150972,1768553645676,-716.45,0.00037534,10]
[402150973,1768553645685,-500.0,0.00037534,10]
[402150974,1768553645694,-885.26,0.00037534,10]
[402150975,1768553645704,-1027.78,0.00037534,10]
[402150976,1768553645713,-500.0,0.00037534,10]
[402150977,1768553645722,-678.11,0.00037534,10]
[402150978,1768553645731,-1096.77,0.00037534,10]
[402150979,1768553645740,-500.0,0.00037534,10]
[402150980,1768553645750,-681.79,0.00037534,10]
[402150981,1768553645758,-702.08,0.00037534,10]
[402150982,1768553645768,-1477.47,0.00037534,10]
[402150983,1768553645777,-500.0,0.00037534,10]
[402150984,1768553645786,-500.0,0.00037534,10]
[402150985,1768553645795,-989.99,0.00037534,10]
[402150986,1768553645805,-676.3,0.00037534,10]
[402150987,1768553645814,-500.0,0.00037534,10]
[402150988,1768553645825,-500.0,0.00037534,10]
[402150989,1768553645835,-500.0,0.00037534,10]
[402150990,1768553645844,-912.84,0.00037534,10]
[402150991,1768553645853,-500.0,0.00037534,10]
[402150992,1768553645863,-807.54,0.00037534,10]
[402150993,1768553645872,-500.0,0.00037534,10]
[402150994,1768553645881,-591.47,0.00037534,10]
[402150995,1768553645891,-1293.68,0.00037534,10]
[402150996,1768553645900,-500.0,0.00037534,10]
[402150997,1768553645909,-500.0,0.00037534,10]
[402150998,1768553645919,-500.0,0.00037534,10]
[402150999,1768553645928,-500.0,0.00037534,10]
[402151000,1768553645937,-500.0,0.00037534,10]
[402151001,1768553645946,-500.0,0.00037534,10]
[402151002,1768553645956,-618.86,0.00037534,10]
[402151003,1768553645965,-834.67,0.00037534,10]
[402151004,1768553645975,-500.0,0.00037534,10]
[402151005,1768553645992,-500.0,0.00037534,10]
[402151006,1768553646008,-4949.68,0.00037534,10]
[402151007,1768553646018,-1730.65,0.00037534,10]
[402151008,1768553646028,-500.0,0.00037534,10]
[402151009,1768553646037,-500.0,0.00037534,10]
[402151010,1768553646047,-500.46,0.00037534,10]
[402151011,1768553646056,-930.98,0.00037534,10]
[402151012,1768553646066,-875.62,0.00037534,10]
[402151013,1768553646075,-500.0,0.00037534,10]
[402151014,1768553646085,-500.0,0.00037534,10]
[402151015,1768553646094,-500.0,0.00037534,10]
[402151016,1768553646104,-1041.0,0.00037534,10]
[402151017,1768553646113,-500.0,0.00037534,10]
[402151018,1768553646123,-500.0,0.00037534,10]
[402151019,1768553646132,-1262.31,0.00037534,10]
[402151020,1768553646141,-524.92,0.00037534,10]
[402151021,1768553646151,-591.83,0.00037534,10]
[402151022,1768553646160,-500.0,0.00037534,10]
[402151023,1768553646170,-178.85848946,0.00037534,10]
[402151024,1768553646182,-614.68,0.00037534,10]
[402151025,1768553646191,-500.0,0.00037534,10]
[402151026,1768553646200,-790.99,0.00037534,10]
[402151027,1768553646210,-1848.72,0.00037534,10]
[402151028,1768553646219,-500.0,0.00037534,10]
[402151029,1768553646228,-353.65,0.00037534,2]
[402151030,1768553646237,-1044.21,0.00037534,10]
[402151031,1768553646246,-500.0,0.00037534,10]
[402151032,1768553646256,-500.0,0.00037534,10]
[402151033,1768553646266,-500.0,0.00037534,10]
[402151034,1768553646275,-1947.44,0.00037534,10]
[402151035,1768553646284,-629.32,0.00037534,10]
[402151036,1768553646293,-1553.42,0.00037534,10]
[402151037,1768553646303,-1024.82,0.00037534,10]
[402151038,1768553646313,-500.0,0.00037534,10]
[402151039,1768553646322,-875.71,0.00037534,10]
[402151040,1768553646331,-154.99179438,0.00037534,10]
[402151041,1768553646341,-795.66,0.00037534,10]
[402151042,1768553646350,-500.0,0.00037534,10]
[402151043,1768553646360,-1036.49,0.00037534,10]
[402151044,1768553646369,-1013.98,0.00037534,10]
[402151045,1768553646377,-562.25,0.00037534,10]
[402151046,1768553646386,-548.64,0.00037534,10]
[402151047,1768553646395,-543.96,0.00037534,10]
[402151048,1768553646405,-1422.5,0.00037534,10]
[402151049,1768553646431,-1126.68,0.00037534,10]
[402151050,1768553646441,-2121.76,0.00037534,10]
[402151051,1768553646450,-1905.23,0.00037534,10]
[402151052,1768553646459,-532.76,0.00037534,10]
[402151053,1768553646469,-502.52,0.00037534,10]
[402151054,1768553646479,-500.0,0.00037534,10]
[402151055,1768553646488,-500.0,0.00037534,10]
[402151056,1768553646498,-500.0,0.00037534,10]
[402151057,1768553646507,-540.07,0.00037534,10]
[402151058,1768553646516,-1016.35,0.00037534,10]
[402151059,1768553646526,-5056.94,0.00037534,10]
[402151060,1768553646535,-592.16,0.00037534,10]
[402151061,1768553646547,-889.56,0.00037534,10]
[402151062,1768553646557,-500.0,0.00037534,10]
[402151063,1768553646566,-1150.45,0.00037534,10]
[402151064,1768553646575,-1345.33,0.00037534,10]
[402151065,1768553646586,-648.45,0.00037534,10]
[402151066,1768553646595,-1052.14,0.00037534,10]
[402151067,1768553646604,-500.0,0.00037534,10]
[402151068,1768553646615,-990.43,0.00037534,10]
[402151069,1768553646624,-500.0,0.00037534,10]
[402151070,1768553646633,-877.08,0.00037534,10]
[402151071,1768553646643,-1245.81,0.00037534,10]
[402151072,1768553646652,-500.0,0.00037534,10]
[402151073,1768553646662,-665.86,0.00037534,10]
[402151074,1768553646671,-1029.8,0.00037534,10]
[402151075,1768553646681,-1298.7,0.00037534,10]
[402151076,1768553646691,-581.72,0.00037534,10]
[402151077,1768553646701,-850.69,0.00037534,10]
[402151078,1768553646711,-995.5,0.00037534,10]
[402151079,1768553646720,-500.0,0.00037534,10]
[402151080,1768553646730,-1075.5,0.00037534,10]
[402151081,1768553646739,-585.47747733,0.00037534,10]
[402151082,1768553646748,-500.0,0.00037534,10]
[402151083,1768553646757,-519.23,0.00037534,10]
[402151084,1768553646766,-529.03,0.00037534,10]
[402151085,1768553646777,-716.08,0.00037534,10]
[402151086,1768553646786,-500.0,0.00037534,10]
[402151087,1768553646795,-1363.31,0.00037534,10]
[402151088,1768553646805,-598.71,0.00037534,10]
[402151089,1768553646814,-1221.02,0.00037534,10]
[402151090,1768553646823,-1064.34,0.00037534,10]
[402151091,1768553646833,-823.04,0.00037534,10]
[402151092,1768553646842,-500.0,0.00037534,10]
[402151093,1768553646851,-2853.19,0.00037534,10]
[402151094,1768553646860,-500.0,0.00037534,10]
[402151095,1768553646870,-500.0,0.00037534,10]
[402151096,1768553646880,-549.28,0.00037534,10]
[402151097,1768553646890,-913.43,0.00037534,10]
[402151098,1768553646899,-500.0,0.00037534,10]
[402151099,1768553646909,-500.0,0.00037534,10]
[402151100,1768553646919,-591.9,0.00037534,10]
[402151101,1768553646928,-500.0,0.00037534,10]
[402151102,1768553646938,-2393.97,0.00037534,10]
[402151103,1768553646947,-500.0,0.00037534,10]
[402151104,1768553646957,-235.81915497,0.00037534,10]
[402151105,1768553646965,-2257.21,0.00037534,10]
[402151106,1768553646975,-589.47,0.00037534,10]
[402151107,1768553646985,-805.83,0.00037534,10]
[402151108,1768553646995,-546.1,0.00037534,10]
[402151109,1768553647004,-500.0,0.00037534,10]
[402151110,1768553647014,-500.0,0.00037534,10]
[402151111,1768553647023,-1412.18,0.00037534,10]
[402151112,1768553647032,-428.96224767,0.00037534,10]
[402151113,1768553647042,-500.0,0.00037534,10]
[402151114,1768553647051,-500.0,0.00037534,10]
[402151115,1768553647061,-500.0,0.00037534,10]
[402151116,1768553647070,-200.0,0.00037534,120]
[402151117,1768553647080,-712.99,0.00037534,10]
[402151118,1768553647090,-607.72,0.00037534,10]
[402151119,1768553647101,-661.07,0.00037534,10]
[402151120,1768553647112,-732.11,0.00037534,10]
[402151121,1768553647122,-693.86,0.00037534,10]
[402151122,1768553647131,-1182.17,0.00037534,10]
[402151123,1768553647140,-713.12,0.00037534,10]
[402151124,1768553647151,-714.22,0.00037534,10]
[402151125,1768553647160,-652.47,0.00037534,10]
[402151126,1768553647170,-652.5,0.00037534,10]
[402151127,1768553647180,-1245.62,0.00037534,10]
[402151128,1768553647189,-500.0,0.00037534,10]
[402151129,1768553647198,-500.0,0.00037534,10]
[402151130,1768553647207,-500.0,0.00037534,10]
[402151131,1768553647221,-1497.09,0.00037534,10]
[402151132,1768553647241,-1210.4,0.00037534,10]
[402151133,1768553647261,-1212.59,0.00037534,10]
[402151134,1768553647277,-941.66,0.00037534,10]
[402151135,1768553647286,-1223.9,0.00037534,10]
[402151136,1768553647295,-500.0,0.00037534,10]
[402151137,1768553647304,-1292.5,0.00037534,10]
[402151138,1768553647313,-1141.45,0.00037534,10]
[402151139,1768553647322,-885.86,0.00037534,10]
[402151140,1768553647331,-520.6,0.00037534,10]
[402151141,1768553647340,-3901.38,0.00037534,10]
[402151142,1768553647350,-1228.85,0.00037534,10]
[402151143,1768553647359,-532.57,0.00037534,10]
[402151144,1768553647372,-1219.5,0.00037534,10]
[402151145,1768553647381,-2909.8,0.00037534,10]
[402151146,1768553647390,-858.87,0.00037534,10]
[402151147,1768553647399,-500.0,0.00037534,10]
[402151148,1768553647408,-544.68,0.00037534,10]
[402151149,1768553647417,-993.01,0.00037534,10]
[402151150,1768553647427,-500.0,0.00037534,10]
[402151151,1768553647436,-1760.07,0.00037534,10]
[402151152,1768553647444,-553.74,0.00037534,10]
[402151153,1768553647453,-500.0,0.00037534,10]
[402151154,1768553647462,-1541.19,0.00037534,10]
[402151155,1768553647470,-500.0,0.00037534,10]
[402151156,1768553647479,-1004.55,0.00037534,10]
[402151157,1768553647489,-599.03,0.00037534,10]
[402151158,1768553647498,-1256.3,0.00037534,10]
[402151159,1768553647507,-722.08,0.00037534,10]
[402151160,1768553647516,-500.0,0.00037534,10]
[402151161,1768553647524,-1627.41,0.00037534,10]
[402151162,1768553647533,-999.49,0.00037534,10]
[402151163,1768553647547,-1143.9,0.00037534,10]
[402151164,1768553647556,-1224.65,0.00037534,10]
[402151165,1768553647565,-500.0,0.00037534,10]
[402151166,1768553647575,-560.6,0.00037534,10]
[402151167,1768553647585,-2225.78,0.00037534,10]
[402151168,1768553647594,-1155.7,0.00037534,10]
[402151169,1768553647603,-500.0,0.00037534,10]
[402151170,1768553647614,-614.31,0.00037534,10]
[402151171,1768553647623,-2192.51,0.00037534,10]
[402151172,1768553647632,-637.11,0.00037534,10]
[402151173,1768553647641,-500.0,0.00037534,10]
[402151174,1768553647650,-758.24,0.00037534,10]
[402151175,1768553647660,-2013.58,0.00037534,10]
[402151176,1768553647669,-500.0,0.00037534,10]
[402151177,1768553647678,-2864.87,0.00037534,10]
[402151178,1768553647687,-808.72,0.00037534,10]
[402151179,1768553647696,-1567.87,0.00037534,10]
[402151180,1768553647705,-518.17,0.00037534,10]
[402151181,1768553647715,-1811.28,0.00037534,10]
[402151182,1768553647724,-558.81,0.00037534,10]
[402151183,1768553647733,-1071.23,0.00037534,10]
[402151184,1768553647743,-659.01,0.00037534,10]
[402151185,1768553647752,-866.89,0.00037534,10]
[402151186,1768553647762,-1032.65,0.00037534,10]
[402151187,1768553647771,-759.31,0.00037534,10]
[402151188,1768553647780,-637.41,0.00037534,10]
[402151189,1768553647791,-1020.76,0.00037534,10]
[402151190,1768553647799,-1128.16,0.00037534,10]
[402151191,1768553647809,-547.39,0.00037534,10]
[402151192,1768553647818,-7210.62,0.00037534,10]
[402151193,1768553647829,-5211.07,0.00037534,10]
[402151194,1768553647839,-1681.96,0.00037534,10]
[402151195,1768553647848,-729.24,0.00037534,10]
[402151196,1768553647859,-500.0,0.00037534,10]
[402151197,1768553647869,-5144.07,0.00037534,10]
[402151198,1768553647881,-1064.3,0.00037534,10]
[402151199,1768553647891,-521.48,0.00037534,10]
[402151200,1768553647903,-532.27,0.00037534,10]
[402151201,1768553647914,-500.0,0.00037534,10]
[402151202,1768553647925,-1000.95,0.00037534,10]
[402151203,1768553647935,-1000.0,0.00037534,10]
[402151204,1768553647946,-672.3,0.00037534,10]
[402151205,1768553647957,-2351.16,0.00037534,10]
[402151206,1768553647966,-679.92,0.00037534,10]
[402151207,1768553647976,-642.7,0.00037534,10]
[402151208,1768553647987,-1048.19,0.00037534,10]
[402151209,1768553648137,-500.0,0.00037534,10]
[402151210,1768553648148,-2044.82,0.00037534,10]
[402151211,1768553648160,-500.0,0.00037534,10]
[402151212,1768553648171,-735.56,0.00037534,10]
[402151213,1768553648181,-804.46,0.00037534,10]
[402151214,1768553648191,-500.0,0.00037534,10]
[402151215,1768553648201,-793.57,0.00037534,10]
[402151216,1768553648211,-500.0,0.00037534,10]
[402151217,1768553648223,-500.0,0.00037534,10]
[402151218,1768553648233,-2221.23,0.00037534,10]
[402151219,1768553648243,-1159.07,0.00037534,10]
[402151220,1768553648252,-247.84063065,0.00037534,10]
[402151221,1768553648261,-580.85,0.00037534,10]
[402151222,1768553648271,-941.49,0.00037534,10]
[402151223,1768553648281,-599.94,0.00037534,10]
[402151224,1768553648291,-500.0,0.00037534,10]
[402151225,1768553648302,-677.99,0.00037534,10]
[402151226,1768553648311,-1202.41,0.00037534,10]
[402151227,1768553648321,-2033.16,0.00037534,10]
[402151228,1768553648331,-2114.42,0.00037534,10]
[402151229,1768553648342,-1524.13,0.00037534,10]
[402151230,1768553648352,-953.55,0.00037534,10]
[402151231,1768553648362,-1013.89,0.00037534,10]
[402151232,1768553648372,-556.39,0.00037534,10]
[402151233,1768553648382,-431.25322926,0.00037534,10]
[402151234,1768553648394,-500.0,0.00037534,10]
[402151235,1768553648405,-1302.19,0.00037534,10]
[402151236,1768553648414,-593.7,0.00037534,10]
[402151237,1768553648424,-859.25,0.00037534,10]
[402151238,1768553648435,-623.79,0.00037534,10]
[402151239,1768553648445,-1282.3,0.00037534,10]
[402151240,1768553648457,-500.0,0.00037534,10]
[402151241,1768553648468,-500.0,0.00037534,10]
[402151242,1768553648477,-1084.77,0.00037534,10]
[402151243,1768553648487,-500.0,0.00037534,10]
[402151244,1768553648497,-500.0,0.00037534,10]
[402151245,1768553648508,-606.36,0.00037534,10]
[402151246,1768553648518,-500.0,0.00037534,10]
[402151247,1768553648529,-781.44,0.00037534,10]
[402151248,1768553648539,-616.11,0.00037534,10]
[402151249,1768553648552,-731.99,0.00037534,10]
[402151250,1768553648562,-500.0,0.00037534,10]
[402151251,1768553648572,-907.52,0.00037534,10]
[402151252,1768553648583,-849.36,0.00037534,10]
[402151253,1768553648595,-500.0,0.00037534,10]
[402151254,1768553648605,-643.32,0.00037534,10]
[402151255,1768553648615,-1477.23,0.00037534,10]
[402151256,1768553648627,-500.0,0.00037534,10]
[402151257,1768553648636,-823.29,0.00037534,10]
[402151258,1768553648647,-802.79,0.00037534,10]
[402151259,1768553648657,-725.02,0.00037534,10]
[402151260,1768553648666,-1029.59,0.00037534,10]
[402151261,1768553648676,-2502.55,0.00037534,10]
[402151262,1768553648686,-713.0,0.00037534,10]
[402151263,1768553648696,-1172.78,0.00037534,10]
[402151264,1768553648708,-1013.39,0.00037534,10]
[402151265,1768553648718,-500.0,0.00037534,10]
[402151266,1768553648730,-500.0,0.00037534,10]
[402151267,1768553648740,-764.71,0.00037534,10]
[402151268,1768553648750,-761.36,0.00037534,10]
[402151269,1768553648759,-342.10199683,0.00037534,10]
[402151270,1768553648769,-4884.35,0.00037534,10]
[402151271,1768553648780,-629.83,0.00037534,10]
[402151272,1768553648790,-704.6,0.00037534,10]
[402151273,1768553648800,-1262.69,0.00037534,10]
[402151274,1768553648810,-500.0,0.00037534,10]
[402151275,1768553648819,-1064.4,0.00037534,10]
[402151276,1768553648830,-500.0,0.00037534,10]
[402151277,1768553648840,-564.83,0.00037534,10]
[402151278,1768553648850,-1260.28,0.00037534,10]
[402151279,1768553648860,-662.32,0.00037534,10]
[402151280,1768553648870,-1785.36,0.00037534,10]
[402151281,1768553648880,-1338.09,0.00037534,10]
[402151282,1768553648890,-750.48,0.00037534,10]
[402151283,1768553648900,-500.0,0.00037534,10]
[402151284,1768553648911,-897.64,0.00037534,10]
[402151285,1768553648921,-500.0,0.00037534,10]
[402151286,1768553648934,-591.5,0.00037534,10]
[402151287,1768553648943,-1018.43,0.00037534,10]
[402151288,1768553648953,-500.0,0.00037534,10]
[402151289,1768553648965,-764.04,0.00037534,10]
[402151290,1768553648975,-747.98,0.00037534,10]
[402151291,1768553648984,-500.0,0.00037534,120]
[402151292,1768553648996,-500.0,0.00037534,10]
[402151293,1768553649007,-500.0,0.00037534,10]
[402151294,1768553649017,-500.0,0.00037534,10]
[402151295,1768553649027,-505.41,0.00037534,10]
[402151296,1768553649038,-500.0,0.00037534,10]
[402151297,1768553649048,-500.0,0.00037534,10]
[402151298,1768553649059,-6302.12,0.00037534,10]
[402151299,1768553649071,-1736.72,0.00037534,10]
[402151300,1768553649083,-500.0,0.00037534,10]
[402151301,1768553649093,-500.0,0.00037534,10]
[402151302,1768553649104,-500.0,0.00037534,10]
[402151303,1768553649114,-500.0,0.00037534,10]
[402151304,1768553649124,-667.66,0.00037534,10]
[402151305,1768553649134,-1002.58,0.00037534,10]
[402151306,1768553649144,-528.13,0.00037534,10]
[402151307,1768553649154,-500.0,0.00037534,10]
[402151308,1768553649164,-1041.6,0.00037534,10]
[402151309,1768553649175,-500.0,0.00037534,10]
[402151310,1768553649185,-848.85,0.00037534,10]
[402151311,1768553649197,-500.0,0.00037534,10]
[402151312,1768553649207,-500.0,0.00037534,10]
[402151313,1768553649216,-500.0,0.00037534,10]
[402151314,1768553649227,-1353.3,0.00037534,10]
[402151315,1768553649239,-1109.73,0.00037534,10]
[402151316,1768553649249,-500.0,0.00037534,10]
[402151317,1768553649259,-1021.74,0.00037534,10]
[402151318,1768553649269,-623.92,0.00037534,10]
[402151319,1768553649280,-737.24,0.00037534,10]
[402151320,1768553649290,-539.09,0.00037534,10]
[402151321,1768553649300,-935.75,0.00037534,10]
[402151322,1768553649310,-1333.16,0.00037534,10]
[402151323,1768553649319,-907.64,0.00037534,10]
[402151324,1768553649329,-535.61,0.00037534,10]
[402151325,1768553649340,-686.98,0.00037534,10]
[402151326,1768553649349,-878.33,0.00037534,10]
[402151327,1768553649359,-664.49,0.00037534,10]
[402151328,1768553649369,-500.0,0.00037534,10]
[402151329,1768553649379,-1173.84,0.00037534,10]
[402151330,1768553649388,-500.0,0.00037534,10]
[402151331,1768553649401,-9836.18,0.00037534,10]
[402151332,1768553649410,-500.0,0.00037534,10]
[402151333,1768553649420,-500.0,0.00037534,10]
[402151334,1768553649431,-1566.32,0.00037534,10]
[402151335,1768553649440,-915.15,0.00037534,10]
[402151336,1768553649450,-754.56,0.00037534,10]
[402151337,1768553649459,-600.0,0.00037534,30]
[402151338,1768553649470,-238.90934185,0.00037555,7]
[402151339,1768553649480,-200.06159783,0.00037555,7]
[402151340,1768553649490,-162.8115885,0.00037555,7]
[402151341,1768553649499,-214.36344643,0.00037555,7]
[402151342,1768553649509,-203.67457519,0.00037555,7]
[402151343,1768553649518,-303.49476013,0.00037555,7]
[402151344,1768553649529,-167.99625046,0.00037555,7]
[402151345,1768553649539,-150.0,0.00037566,7]
[402151346,1768553649552,-350.0,0.00037568,5]
[402151347,1768553649561,-150.0,0.00037569,7]
[402151348,1768553649571,-150.0,0.00037574,7]
[402151349,1768553649580,-238.90934185,0.00037612,7]
[402151350,1768553649591,-200.06159783,0.00037612,7]
[402151351,1768553649601,-162.8115885,0.00037612,7]
[402151352,1768553649611,-214.36344643,0.00037612,7]
[402151353,1768553649622,-203.67457519,0.00037612,7]
[402151354,1768553649631,-303.49476013,0.00037612,7]
[402151355,1768553649641,-167.99625046,0.00037612,7]
[402151356,1768553649650,-150.0,0.00037631,7]
[402151357,1768553649660,-150.0,0.00037658,7]
[402151358,1768553649669,-150.0,0.00037658,7]
[402151359,1768553649679,-238.90934185,0.0003767,7]
[402151360,1768553649688,-200.06159783,0.0003767,7]
[402151361,1768553649699,-162.8115885,0.0003767,7]
[402151362,1768553649710,-214.36344643,0.0003767,7]
[402151363,1768553649721,-203.67457519,0.0003767,7]
[402151364,1768553649731,-303.49476013,0.0003767,7]
[402151365,1768553649741,-167.99625046,0.0003767,7]
[402151366,1768553649752,-150.0,0.00037681,7]
[402151367,1768553649763,-226.42033449,0.00037708,2]
[402151368,1768553649776,-539.0,0.0003771,13]
[402151369,1768553649786,-150.0,0.00037718,7]
[402151370,1768553649795,-3672.44,0.00037726,2]
[402151371,1768553649806,-238.90934185,0.00037727,7]
[402151372,1768553649818,-200.06159783,0.00037727,7]
[402151373,1768553649827,-162.8115885,0.00037727,7]
[402151374,1768553649837,-214.36344643,0.00037727,7]
[402151375,1768553649846,-203.67457519,0.00037727,7]
[402151376,1768553649856,-303.49476013,0.00037727,7]
[402151377,1768553649868,-167.99625046,0.00037727,7]
[402151378,1768553649878,-500.0,0.00037753,120]
[402151379,1768553649888,-500.0,0.00037753,120]
[402151380,1768553649897,-303.71757507,0.00037753,120]
[402151381,1768553649907,-150.0,0.00037769,7]
[402151382,1768553649917,-238.90934185,0.00037784,7]
[402151383,1768553649927,-200.06159783,0.00037784,7]
[402151384,1768553649937,-162.8115885,0.00037784,7]
[402151385,1768553649948,-214.36344643,0.00037784,7]
[402151386,1768553649958,-150.0,0.00037784,7]
[402151387,1768553649967,-203.67457519,0.00037784,7]
[402151388,1768553649978,-303.49476013,0.00037784,7]
[402151389,1768553649988,-167.99625046,0.00037784,7]
[402151390,1768553649998,-150.0,0.00037797,7]
[402151391,1768553650007,-240.95,0.000378,14]
[402151392,1768553650017,-2537.02,0.000378,14]
[402151393,1768553650028,-1103.68,0.00037807,5]
[402151394,1768553650038,-567.28,0.00037808,10]
[402151395,1768553650047,-1031.15,0.00037808,10]
[402151396,1768553650057,-151.0,0.00037808,10]
[402151397,1768553650067,-153.269825,0.00037808,10]
[402151398,1768553650076,-199.543983,0.00037808,10]
[402151399,1768553650086,-163.978129,0.00037808,10]
[402151400,1768553650095,-500.0,0.00037808,10]
[402151401,1768553650105,-500.0,0.00037808,10]
[402151402,1768553650114,-808.21,0.00037808,10]
[402151403,1768553650123,-813.73,0.00037808,10]
[402151404,1768553650132,-973.06,0.00037808,10]
[402151405,1768553650141,-504.36,0.00037808,10]
[402151406,1768553650153,-500.0,0.00037808,10]
[402151407,1768553650165,-674.01,0.00037808,10]
[402151408,1768553650175,-313.02462159,0.00037808,10]
[402151409,1768553650184,-500.0,0.00037808,10]
[402151410,1768553650194,-1037.35,0.00037808,10]
[402151411,1768553650203,-525.62,0.00037808,10]
[402151412,1768553650213,-1211.73,0.00037808,10]
[402151413,1768553650222,-500.0,0.00037808,10]
[402151414,1768553650231,-654.54,0.00037808,10]
[402151415,1768553650240,-902.4,0.00037808,10]
[402151416,1768553650250,-500.0,0.00037808,10]
[402151417,1768553650259,-548.97,0.00037808,10]
[402151418,1768553650268,-915.0,0.00037808,10]
[402151419,1768553650277,-500.0,0.00037808,10]
[402151420,1768553650286,-786.94,0.00037808,10]
[402151421,1768553650296,-1003.52,0.00037808,10]
[402151422,1768553650306,-500.0,0.00037808,10]
[402151423,1768553650316,-500.0,0.00037808,10]
[402151424,1768553650325,-259.99154603,0.00037808,10]
[402151425,1768553650334,-500.0,0.00037808,10]
[402151426,1768553650343,-837.95,0.00037808,10]
[402151427,1768553650354,-551.36,0.00037808,10]
[402151428,1768553650363,-500.0,0.00037808,10]
[402151429,1768553650742,-548.17,0.00037808,10]
[402151430,1768553650757,-500.0,0.00037808,10]
[402151431,1768553650767,-1196.74,0.00037808,10]
[402151432,1768553650777,-587.74,0.00037808,10]
[402151433,1768553650787,-500.0,0.00037808,10]
[402151434,1768553650797,-1100.8,0.00037808,10]
[402151435,1768553650806,-500.0,0.00037808,10]
[402151436,1768553650816,-1067.27,0.00037808,10]
[402151437,1768553650825,-500.0,0.00037808,10]
[402151438,1768553650836,-826.56,0.00037808,10]
[402151439,1768553650846,-500.0,0.00037808,10]
[402151440,1768553650857,-875.73,0.00037808,10]
[402151441,1768553650869,-866.61,0.00037808,10]
[402151442,1768553650879,-542.86,0.00037808,10]
[402151443,1768553650888,-500.0,0.00037808,10]
[402151444,1768553650898,-513.96,0.00037808,10]
[402151445,1768553650907,-853.02,0.00037808,10]
[402151446,1768553650917,-500.0,0.00037808,10]
[402151447,1768553650927,-576.21754722,0.00037808,10]
[402151448,1768553650937,-625.29,0.00037808,10]
[402151449,1768553650947,-568.61,0.00037808,10]
[402151450,1768553650956,-500.0,0.00037808,10]
[402151451,1768553650966,-503.47,0.00037808,10]
[402151452,1768553650975,-500.0,0.00037808,10]
[402151453,1768553650984,-500.0,0.00037808,10]
[402151454,1768553650993,-500.0,0.00037808,10]
[402151455,1768553651003,-1479.39,0.00037808,10]
[402151456,1768553651012,-668.37,0.00037808,10]
[402151457,1768553651021,-554.51,0.00037808,10]
[402151458,1768553651030,-823.81,0.00037808,10]
[402151459,1768553651040,-522.66,0.00037808,10]
[402151460,1768553651050,-632.8,0.00037808,10]
[402151461,1768553651059,-760.77,0.00037808,10]
[402151462,1768553651069,-500.0,0.00037808,10]
[402151463,1768553651079,-500.0,0.00037808,10]
[402151464,1768553651088,-540.98,0.00037808,10]
[402151465,1768553651097,-500.0,0.00037808,10]
[402151466,1768553651106,-586.41122891,0.00037808,10]
[402151467,1768553651116,-500.0,0.00037808,10]
[402151468,1768553651125,-513.95,0.00037808,10]
[402151469,1768553651134,-543.44,0.00037808,10]
[402151470,1768553651145,-766.12,0.00037808,10]
[402151471,1768553651154,-745.1,0.00037808,10]